[Event "57th Biel Festival ATO 2024"]
[Site "Biel"]
[Date "2024.07.25"]
[Round "9.43"]
[White "Loeffler, Helmut"]
[Black "Shin, Seungmin"]
[Result "1/2-1/2"]
[ECO "D05"]
[WhiteElo "1745"]
[BlackElo "1493"]
[Annotator "NA RC"]
[PlyCount "45"]
[EventDate "2024.07.03"]
[EventType "swiss"]
[EventCountry "SUI"]
[SourceTitle "playchess.com"]
[Source "ChessBase"]
[SourceQuality "1"]
[TimeControl "40/5400+30:1800+30"]

1. d4 {[%emt 0:00:07]} Nf6 {[%emt 0:00:08]} 2. Nf3 {[%emt 0:00:09]} e6 {[%emt 0:00:04]} 3. e3 {[%emt 0:00:11]} c5 {[%emt 0:00:06]} 4. b3 {[%emt 0:01:04]} d5 {[%emt 0:00:25]} 5. Bd3 {[%emt 0:01:28]} Nc6 {[%emt 0:01:10]} 6. a3 {[%emt 0:01:01]} a5 {[%emt 0:01:58]} 7. Nbd2 {[%emt 0:01:04]} Be7 {[%emt 0:01:16]} 8. O-O {[%emt 0:00:32]} O-O {[%emt 0:00:14]} 9. Bb2 {[%emt 0:01:57]} cxd4 {[%emt 0:02:12]} 10. Nxd4 {[%emt 0:01:57]} Re8 {[%emt 0:01:44]} 11. N4f3 {[%emt 0:02:44]} Qc7 {[%emt 0:02:52]} 12. Re1 {[%emt 0:10:11]} e5 {[%emt 0:03:25]} 13. Bb5 {[%emt 0:02:06]} Bd6 {[%emt 0:04:09]} 14. e4 {[%emt 0:05:00]} dxe4 {[%emt 0:08:09]} 15. Nxe4 {[%emt 0:00:59]} Nxe4 {[%emt 0:00:28]} 16. Rxe4 {[%emt 0:00:33]} Bf5 {[%emt 0:01:49]} 17. Rh4 {[%emt 0:05:40]} Rad8 {[%emt 0:03:19]} 18. Qe2 {[%emt 0:07:01]} Qe7 {[%emt 0:09:44]} 19. Rc4 {[%emt 0:05:32]} Be6 {[%emt 0:07:23]} 20. Ra4 {[%emt 0:06:26]} Bc7 {[%emt 0:06:34]} 21. Bxc6 {[%emt 0:06:16]} bxc6 {[%emt 0:00:24]} 22. h3 {[%emt 0:03:45]} f6 {[%emt 0:00:18]} 23. Re1 {[%emt 0:04:24]} 1/2-1/2

[Event "57th Biel Festival ATO 2024"]
[Site "Biel"]
[Date "2024.07.25"]
[Round "9.44"]
[White "Harte, Bernd"]
[Black "Weihs, David"]
[Result "1-0"]
[ECO "D20"]
[WhiteElo "1592"]
[BlackElo "1733"]
[Annotator "NA RC"]
[PlyCount "35"]
[EventDate "2024.07.03"]
[EventType "swiss"]
[EventCountry "SUI"]
[SourceTitle "playchess.com"]
[Source "ChessBase"]
[SourceQuality "1"]
[TimeControl "40/5400+30:1800+30"]

1. d4 {[%emt 0:11:42]} d5 {[%emt 0:00:08]} 2. c4 {[%emt 0:00:11]} dxc4 {[%emt 0:00:06]} 3. e4 {[%emt 0:00:30]} e5 {[%emt 0:00:14]} 4. d5 {[%emt 0:01:19]} Nf6 {[%emt 0:00:19]} 5. f3 {[%emt 0:01:42]} b5 {[%emt 0:08:36]} 6. Bg5 {[%emt 0:00:52]} c6 {[%emt 0:02:32]} 7. a3 {[%emt 0:01:39]} cxd5 {[%emt 0:00:42]} 8. exd5 {[%emt 0:00:56]} Qxd5 {[%emt 0:00:40]} 9. Qxd5 {[%emt 0:01:08]} Nxd5 {[%emt 0:00:06]} 10. Nc3 {[%emt 0:00:21]} Nxc3 {[%emt 0:01:15]} 11. bxc3 {[%emt 0:00:10]} a6 {[%emt 0:02:51]} 12. O-O-O {[%emt 0:01:03]} Bxa3+ {[%emt 0:00:38]} 13. Kd2 {[%emt 0:00:37]} Bf5 {[%emt 0:00:26]} 14. g4 {[%emt 0:00:39]} Nc6 {[%emt 0:01:11]} 15. Bg2 {[%emt 0:00:28]} Bg6 {[%emt 0:00:26]} 16. Be3 {[%emt 0:03:56]} f6 {[%emt 0:01:37]} 17. f4 {[%emt 0:07:09]} O-O {[%emt 0:03:21]} 18. Bf3 {[%emt 0:06:14]} 1-0

[Event "57th Biel Festival ATO 2024"]
[Site "Biel"]
[Date "2024.07.25"]
[Round "9.45"]
[White "Kim, Danha"]
[Black "Trachsel, Peter"]
[Result "0-1"]
[ECO "B12"]
[WhiteElo "1491"]
[BlackElo "1782"]
[Annotator "NA RC"]
[PlyCount "74"]
[EventDate "2024.07.03"]
[EventType "swiss"]
[EventCountry "SUI"]
[SourceTitle "playchess.com"]
[Source "ChessBase"]
[SourceQuality "1"]
[TimeControl "40/5400+30:1800+30"]

1. e4 {[%emt 0:00:07]} c6 {[%emt 0:00:23]} 2. d4 {[%emt 0:00:24]} d5 {[%emt 0:00:28]} 3. e5 {[%emt 0:00:45]} Bf5 {[%emt 0:00:39]} 4. Nf3 {[%emt 0:00:38]} e6 {[%emt 0:00:46]} 5. Bd3 {[%emt 0:00:38]} Bxd3 {[%emt 0:00:44]} 6. Qxd3 {[%emt 0:01:09]} Qa5+ {[%emt 0:01:14]} 7. Bd2 {[%emt 0:02:02]} Qa6 {[%emt 0:00:50]} 8. Qxa6 {[%emt 0:00:22]} Nxa6 {[%emt 0:00:15]} 9. O-O {[%emt 0:00:15]} c5 {[%emt 0:01:14]} 10. c3 {[%emt 0:00:42]} Ne7 {[%emt 0:01:14]} 11. Na3 {[%emt 0:00:56]} Nc6 {[%emt 0:02:15]} 12. Nb5 {[%emt 0:02:26]} Rc8 {[%emt 0:02:35]} 13. Rac1 {[%emt 0:02:36]} Nc7 {[%emt 0:05:52]} 14. Nxc7+ {[%emt 0:01:09]} Rxc7 {[%emt 0:00:13]} 15. Rfe1 {[%emt 0:01:32]} h6 {[%emt 0:02:07]} 16. h3 {[%emt 0:02:20]} Kd7 {[%emt 0:03:39]} 17. Be3 {[%emt 0:02:56]} cxd4 {[%emt 0:01:49]} 18. cxd4 {[%emt 0:02:03]} Be7 {[%emt 0:04:27]} 19. Rc2 {[%emt 0:03:12]} Rhc8 {[%emt 0:01:31]} 20. Rec1 {[%emt 0:00:35]} Nb4 {[%emt 0:04:24]} 21. Rxc7+ {[%emt 0:00:48]} Rxc7 {[%emt 0:00:14]} 22. Rxc7+ {[%emt 0:00:05]} Kxc7 {[%emt 0:00:13]} 23. a3 {[%emt 0:00:38]} Nc6 {[%emt 0:00:45]} 24. Kf1 {[%emt 0:01:15]} Na5 {[%emt 0:01:42]} 25. Nd2 {[%emt 0:00:42]} b5 {[%emt 0:01:45]} 26. Ke2 {[%emt 0:03:53]} Kc6 {[%emt 0:04:51]} 27. Kd3 {[%emt 0:03:54]} Nc4 {[%emt 0:01:19]} 28. Nxc4 {[%emt 0:01:13]} dxc4+ {[%emt 0:00:30]} 29. Kc3 {[%emt 0:00:59]} Kd5 {[%emt 0:01:18]} 30. f3 {[%emt 0:03:52]} h5 {[%emt 0:01:15]} 31. g4 {[%emt 0:01:48]} g6 {[%emt 0:00:32]} 32. Bh6 {[%emt 0:05:00]} a5 {[%emt 0:00:27]} 33. Be3 {[%emt 0:01:53]} b4+ {[%emt 0:01:00]} 34. axb4 {[%emt 0:02:39]} axb4+ {[%emt 0:00:17]} 35. Kd2 {[%emt 0:02:06]} Bd8 {[%emt 0:00:46]} 36. gxh5 {[%emt 0:01:59]} gxh5 {[%emt 0:00:13]} 37. b3 {[%emt 0:01:45]} cxb3 {[%emt 0:07:59]} 0-1

[Event "57th Biel Festival ATO 2024"]
[Site "Biel"]
[Date "2024.07.25"]
[Round "9.46"]
[White "Kim Rian B"]
[Black "Buntschu, Kurt"]
[Result "0-1"]
[ECO "B92"]
[WhiteElo "1592"]
[BlackElo "1868"]
[Annotator "NA RC"]
[PlyCount "60"]
[EventDate "2024.07.03"]
[EventType "swiss"]
[EventCountry "SUI"]
[SourceTitle "playchess.com"]
[Source "ChessBase"]
[SourceQuality "1"]
[TimeControl "40/5400+30:1800+30"]

1. e4 {[%emt 0:00:12]} c5 {[%emt 0:00:15]} 2. Nf3 {[%emt 0:00:12]} d6 {[%emt 0:00:25]} 3. d4 {[%emt 0:00:19]} cxd4 {[%emt 0:00:09]} 4. Nxd4 {[%emt 0:00:09]} Nf6 {[%emt 0:00:12]} 5. Nc3 {[%emt 0:00:15]} a6 {[%emt 0:00:15]} 6. Be3 {[%emt 0:00:15]} e5 {[%emt 0:00:13]} 7. Nb3 {[%emt 0:00:26]} Be6 {[%emt 0:00:11]} 8. f3 {[%emt 0:01:42]} Be7 {[%emt 0:00:18]} 9. Be2 {[%emt 0:01:05]} O-O {[%emt 0:01:15]} 10. O-O {[%emt 0:03:23]} Nbd7 {[%emt 0:02:33]} 11. Qd2 {[%emt 0:01:37]} Qc7 {[%emt 0:06:28]} 12. Rfd1 {[%emt 0:04:02]} Rac8 {[%emt 0:01:40]} 13. a4 {[%emt 0:03:07]} Nc5 {[%emt 0:04:33]} 14. Nxc5 {[%emt 0:01:06]} dxc5 {[%emt 0:00:30]} 15. Nd5 {[%emt 0:03:59]} Bxd5 {[%emt 0:06:11]} 16. exd5 {[%emt 0:00:20]} Rfd8 {[%emt 0:03:39]} 17. c4 {[%emt 0:01:28]} Nh5 {[%emt 0:06:47]} 18. g3 {[%emt 0:04:11]} f5 {[%emt 0:04:32]} 19. f4 {[%emt 0:00:47]} exf4 {[%emt 0:14:49]} 20. gxf4 {[%emt 0:01:00]} Nf6 {[%emt 0:02:39]} 21. Bf3 {[%emt 0:04:23]} Bd6 {[%emt 0:00:51]} 22. Rac1 {[%emt 0:03:05]} Qe7 {[%emt 0:06:15]} 23. Re1 {[%emt 0:00:50]} Ne4 {[%emt 0:05:20]} 24. Qd3 {[%emt 0:07:55]} Re8 {[%emt 0:01:16]} 25. Bf2 {[%emt 0:07:52]} Nxf2 {[%emt 0:03:09]} 26. Kxf2 {[%emt 0:00:45]} Qh4+ {[%emt 0:00:31]} 27. Kf1 {[%emt 0:01:03]} Qh3+ {[%emt 0:02:28]} 28. Kg1 {[%emt 0:00:42]} Bxf4 {[%emt 0:01:18]} 29. Rc2 {[%emt 0:01:17]} Rxe1+ {[%emt 0:00:29]} 30. Kf2 {[%emt 0:00:22]} Qh4+ {[%emt 0:01:58]} 0-1

[Event "57th Biel Festival ATO 2024"]
[Site "Biel"]
[Date "2024.07.25"]
[Round "9.47"]
[White "Meise, Volker"]
[Black "Kuenzli, Manuel"]
[Result "0-1"]
[ECO "C56"]
[WhiteElo "1772"]
[BlackElo "1542"]
[Annotator "NA RC"]
[PlyCount "60"]
[EventDate "2024.07.03"]
[EventType "swiss"]
[EventCountry "SUI"]
[SourceTitle "playchess.com"]
[Source "ChessBase"]
[SourceQuality "1"]
[TimeControl "40/5400+30:1800+30"]

1. e4 {[%emt 0:00:03]} e5 {[%emt 0:00:20]} 2. Nf3 {[%emt 0:00:07]} Nc6 {[%emt 0:00:25]} 3. Bc4 {[%emt 0:00:12]} Nf6 {[%emt 0:00:36]} 4. d4 {[%emt 0:00:25]} d6 {[%emt 0:01:01]} 5. Nc3 {[%emt 0:02:03]} Bg4 {[%emt 0:00:34]} 6. Be3 {[%emt 0:06:41]} Bxf3 {[%emt 0:00:54]} 7. gxf3 {[%emt 0:00:39]} exd4 {[%emt 0:00:55]} 8. Bxd4 {[%emt 0:00:21]} Nxd4 {[%emt 0:00:14]} 9. Qxd4 {[%emt 0:00:17]} Qe7 {[%emt 0:01:36]} 10. O-O-O {[%emt 0:02:34]} Qe5 {[%emt 0:00:55]} 11. Rhe1 {[%emt 0:13:41]} Qxd4 {[%emt 0:02:02]} 12. Rxd4 {[%emt 0:01:07]} O-O-O {[%emt 0:00:26]} 13. Bxf7 {[%emt 0:02:41]} g6 {[%emt 0:01:33]} 14. Red1 {[%emt 0:10:44]} Nd7 {[%emt 0:01:55]} 15. Be6 {[%emt 0:06:58]} Kb8 {[%emt 0:00:43]} 16. R4d3 {[%emt 0:07:20]} Nc5 {[%emt 0:00:40]} 17. Bb3 {[%emt 0:04:40]} Nxd3+ {[%emt 0:00:15]} 18. Rxd3 {[%emt 0:00:15]} Bg7 {[%emt 0:01:32]} 19. Kd2 {[%emt 0:03:42]} Bxc3+ {[%emt 0:00:14]} 20. Rxc3 {[%emt 0:00:10]} Rhf8 {[%emt 0:00:27]} 21. Ke2 {[%emt 0:00:25]} a6 {[%emt 0:00:55]} 22. a4 {[%emt 0:01:39]} Rfe8 {[%emt 0:01:30]} 23. Kf1 {[%emt 0:01:41]} Re5 {[%emt 0:01:08]} 24. Bc4 {[%emt 0:05:54]} Rc5 {[%emt 0:01:42]} 25. b4 {[%emt 0:07:25]} Rh5 {[%emt 0:00:38]} 26. Kg2 {[%emt 0:00:33]} Rf8 {[%emt 0:00:53]} 27. Be6 {[%emt 0:03:23]} Rg5+ {[%emt 0:01:22]} 28. Kf1 {[%emt 0:03:54]} Rf4 {[%emt 0:01:16]} 29. Bg4 {[%emt 0:00:40]} h5 {[%emt 0:00:43]} 30. Bh3 {[%emt 0:00:12]} Rh4 {[%emt 0:01:01]} 0-1

[Event "57th Biel Festival ATO 2024"]
[Site "Biel"]
[Date "2024.07.25"]
[Round "9.48"]
[White "Settegrana, Miro"]
[Black "Klas, Friedrich Guenther"]
[Result "1-0"]
[ECO "B12"]
[WhiteElo "1532"]
[BlackElo "1750"]
[Annotator "NA RC"]
[PlyCount "39"]
[EventDate "2024.07.03"]
[EventType "swiss"]
[EventCountry "SUI"]
[SourceTitle "playchess.com"]
[Source "ChessBase"]
[SourceQuality "1"]
[TimeControl "40/5400+30:1800+30"]

1. e4 {[%emt 0:09:03]} c6 {[%emt 0:01:24]} 2. d4 {[%emt 0:00:26]} d5 {[%emt 0:00:09]} 3. e5 {[%emt 0:00:20]} Bf5 {[%emt 0:00:13]} 4. h4 {[%emt 0:01:05]} h5 {[%emt 0:04:23]} 5. Bg5 {[%emt 0:03:10]} Qb6 {[%emt 0:00:48]} 6. Bd3 {[%emt 0:00:25]} Bxd3 {[%emt 0:00:03]} 7. Qxd3 {[%emt 0:00:17]} Qa6 {[%emt 0:00:03]} 8. Qe3 {[%emt 0:02:02]} e6 {[%emt 0:01:32]} 9. Ne2 {[%emt 0:00:46]} Nd7 {[%emt 0:02:09]} 10. O-O {[%emt 0:00:36]} Be7 {[%emt 0:00:45]} 11. Ng3 {[%emt 0:02:16]} c5 {[%emt 0:02:18]} 12. c3 {[%emt 0:03:36]} f6 {[%emt 0:04:28]} 13. exf6 {[%emt 0:03:04]} gxf6 {[%emt 0:04:33]} 14. Bf4 {[%emt 0:06:43]} f5 {[%emt 0:06:39]} 15. Re1 {[%emt 0:02:16]} Kf7 {[%emt 0:00:55]} 16. Bg5 {[%emt 0:00:37]} Ngf6 {[%emt 0:00:15]} 17. Nxf5 {[%emt 0:01:02]} Ng4 {[%emt 0:01:08]} 18. Qf4 {[%emt 0:03:06]} Bxg5 {[%emt 0:01:30]} 19. Qxg5 {[%emt 0:00:35]} exf5 {[%emt 0:01:38]} 20. Re7+ {[%emt 0:00:18]} 1-0